[Event "CCT Julius Baer-D3 2024"]
[Site "Online"]
[Date "2024.09.27"]
[Round "51.1"]
[White "Deac, Bogdan-Daniel"]
[Black "Sarana, Alexey"]
[Result "1-0"]
[ECO "E51"]
[WhiteElo "2680"]
[BlackElo "2713"]
[Annotator "TA"]
[PlyCount "113"]
[EventDate "2024.09.25"]
[EventType "swiss"]
[EventCountry "NET"]
[SourceTitle "playchess.com"]
[Source "ChessBase"]
[SourceQuality "1"]
[TimeControl "600+2"]

{[%evp 11,113,-8,0,0,0,1,2,9,63,66,61,-27,0,-19,-16,-24,0,14,0,0,0,-18,0,0,0,0,0,0,0,0,0,0,0,0,0,0,0,0,0,0,25,14,89,97,106,58,793,786,864,843,1125,843,1039,1038,1266,1261,1139,905,928,901,911,913,937,928,1272,1272,1141,937,1112,1106,1407,1179,1179,1180,1192,1104,1174,1020,5735,5594,29986,29987,29987,29988,29988,29985,29985,29986,29990,29991,29989,29990,29992,29980,29980,29981,29981,29982,29982,29983,29983,29984,29984,29985]} 1. d4 {[%emt 0:00:04]} Nf6 {[%emt 0:00:04]} 2. c4 {[%emt 0:00:01]} e6 {[%emt 0:00:00]} 3. Nc3 {[%emt 0:00:01]} Bb4 {[%emt 0:00:10]} 4. e3 {[%emt 0:00:05]} O-O {[%emt 0:00:03]} 5. Bd2 {[%emt 0:00:09]} d5 {[%emt 0:00:08]} 6. Nf3 {[%emt 0:00:02]} Nbd7 {[%emt 0:00:11]} 7. Rc1 {[%emt 0:00:04]} Be7 {[%emt 0:00:07]} 8. Qc2 {[%emt 0:00:22]} h6 {[%emt 0:00:02]} 9. a3 {[%emt 0:01:13] The position is equal.} b6 {[%emt 0:00:05]} (9... c6 $11) 10. cxd5 $14 {[%emt 0:00:29]} exd5 {[%emt 0:00:02]} 11. g3 {[%emt 0:00:03]} ({White should play} 11. Nxd5 $14 Nxd5 12. Qc6) 11... a5 {[%emt 0:00:23]} 12. Bb5 {[%emt 0:00:49][%cal Oc3d5]} Bb7 {[%emt 0:00:06]} 13. Qa4 {[%emt 0:00:02]} Nb8 {[%emt 0:00:51] Repels Bc6} 14. Ne5 {[%emt 0:00:34]} Bd6 {[%emt 0:00:01]} 15. Nc6 {[%emt 0:00:05]} Qc8 {[%emt 0:00:14]} 16. f3 {[%emt 0:00:42]} h5 {[%emt 0:02:36]} 17. O-O {[%emt 0:00:47]} Qe6 {[%emt 0:00:43]} 18. Ne2 {[%emt 0:01:17]} Nxc6 {[%emt 0:00:31]} 19. Bxc6 {[%emt 0:00:02]} Bxc6 {[%emt 0:00:01]} 20. Qxc6 {[%emt 0:00:05]} Rfe8 {[%emt 0:00:03]} 21. Nf4 {[%emt 0:01:09]} Qf5 {[%emt 0:00:01]} 22. Qc2 {[%emt 0:00:18]} Qd7 {[%emt 0:00:03]} 23. Qc6 {[%emt 0:00:03]} Qf5 {[%emt 0:00:05]} 24. Qc2 {[%emt 0:00:56]} Qc8 {[%emt 0:00:08]} 25. Qc6 {[%emt 0:00:40]} h4 {[%emt 0:00:13]} 26. Rf2 {[%emt 0:00:24]} (26. Kf2 {with more complications.} Qf5 27. g4 Qg5 28. Rg1) 26... Qf5 {[%emt 0:00:57]} (26... Bxf4 $11 27. gxf4 Qh3) 27. g4 $16 {[%emt 0:00:05]} Qg5 {[%emt 0:00:01]} 28. h3 {[%emt 0:00:11] White is more active.} ({Better is} 28. Ng2 $16 {[%cal Oe3e4] aiming for e4!} h3 29. e4) 28... Re7 {[%emt 0:00:24][%mdl 8192] This costs Black the game.} 29. Qxa8+ $18 {[%emt 0:00:03]} Kh7 {[%emt 0:00:02]} 30. Qc6 {[%emt 0:00:01]} g6 {[%emt 0:00:06]} 31. Qc2 {[%emt 0:00:04]} Kg7 {[%emt 0:00:01]} 32. Ng2 {[%emt 0:00:04]} Bg3 {[%emt 0:00:05] [#]} 33. e4 $1 {[%emt 0:00:05]} Bxf2+ {[%emt 0:00:03]} 34. Kxf2 {[%emt 0:00:01]} Nxe4+ {[%emt 0:00:01]} 35. fxe4 {[%emt 0:00:01]} Qf6+ {[%emt 0:00:00]} 36. Kg1 {[%emt 0:00:02] e5 is the strong threat.} Rxe4 {[%emt 0:00:00]} 37. Be3 {[%emt 0:00:04]} Qe6 {[%emt 0:00:31]} 38. Qf2 {[%emt 0:00:03]} Qe7 {[%emt 0:00:04]} 39. Qf3 {[%emt 0:00:04]} f6 {[%emt 0:00:17]} 40. Bf2 {[%emt 0:00:01]} g5 {[%emt 0:00:01]} 41. Ne3 {[%emt 0:00:03] [#] Nf5+ would now be deadly.} Qd7 {[%emt 0:00:01]} 42. Nf5+ {[%emt 0:00:01]} Kg6 {[%emt 0:00:01]} 43. Re1 {[%emt 0:00:00]} Qe6 {[%emt 0:00:12]} 44. Qc3 {[%emt 0:00:01] Hoping for Rxe4.} c5 {[%emt 0:00:07]} 45. dxc5 {[%emt 0:00:02] White wants to mate with Rxe4.} bxc5 {[%emt 0:00:00]} 46. Rxe4 {[%emt 0:00:03] White mates.} Qxe4 {[%emt 0:00:00]} 47. Qxc5 {[%emt 0:00:01]} Qb1+ {[%emt 0:00:04]} 48. Kg2 {[%emt 0:00:02]} Qe4+ {[%emt 0:00:01]} 49. Kh2 {[%emt 0:00:01]} Qf4+ {[%emt 0:00:01]} 50. Kg1 {[%emt 0:00:02]} Qb8 {[%emt 0:00:17]} 51. Qxd5 {[%emt 0:00:03]} a4 {[%emt 0:00:01]} 52. Qg8+ {[%emt 0:00:04]} Qxg8 {[%emt 0:00:04]} 53. Ne7+ {[%emt 0:00:01]} Kf7 {[%emt 0:00:00]} 54. Nxg8 {[%emt 0:00:01]} Kxg8 {[%emt 0:00:00]} 55. Kg2 {[%emt 0:00:00]} Kf7 {[%emt 0:00:01]} 56. Kf3 {[%emt 0:00:01]} Ke6 {[%emt 0:00:00]} 57. Ke4 {[%emt 0:00:00] Weighted Error Value: White=0.15 (very precise) /Black=0.18 (very precise) .  Loses game:     	---       	Black=1      Mistake:       	White=2     	Black=2      Inaccurate:     	---       	Black=2      OK:         	White=9     	Black=9      Best:        	White=3     	---} 1-0

[Event "CCT Julius Baer-D3 2024"]
[Site "Online"]
[Date "2024.09.27"]
[Round "51.1"]
[White "Guseinov, Gadir"]
[Black "Amin, Bassem"]
[Result "1/2-1/2"]
[ECO "C44"]
[WhiteElo "2636"]
[BlackElo "2636"]
[Annotator "TA"]
[PlyCount "92"]
[EventDate "2024.09.25"]
[EventType "swiss"]
[EventCountry "NET"]
[SourceTitle "playchess.com"]
[Source "ChessBase"]
[SourceQuality "1"]
[TimeControl "600+2"]

{[%evp 16,92,0,-3,0,0,0,0,0,12,0,0,0,0,0,0,0,0,0,0,0,0,23,11,20,14,54,49,59,57,59,63,92,75,89,91,86,94,88,89,90,63,146,133,125,137,126,34,44,0,26,40,31,16,25,0,0,0,8,8,8,11,8,0,0,0,0,0,0,0,0,0,0,0,0,0,0,0,0]} 1. e4 {[%emt 0:00:02]} e5 {[%emt 0:00:03]} 2. Nf3 {[%emt 0:00:01]} Nc6 {[%emt 0:00:02]} 3. d4 {[%emt 0:00:04]} exd4 {[%emt 0:00:01]} 4. Bc4 {[%emt 0:00:00]} Bc5 {[%emt 0:00:08]} 5. Ng5 {[%emt 0:00:01]} Nh6 {[%emt 0:00:04]} 6. Nxf7 {[%emt 0:00:01]} Nxf7 {[%emt 0:00:00]} 7. Bxf7+ {[%emt 0:00:00]} Kxf7 {[%emt 0:00:01]} 8. Qh5+ {[%emt 0:00:00]} g6 {[%emt 0:00:01]} 9. Qxc5 {[%emt 0:00:03] [#]} d5 $1 {[%emt 0:00:03]} 10. O-O {[%emt 0:00:01]} (10. c3 dxe4) 10... dxe4 {[%emt 0:00:03]} 11. c3 {[%emt 0:00:01]} Qd6 {[%emt 0:00:16]} 12. Qxd6 {[%emt 0:00:01]} (12. cxd4 {looks sharper.} Nxd4 13. Qxd6 Ne2+ 14. Kh1) 12... cxd6 {[%emt 0:00:00]} 13. cxd4 {[%emt 0:00:01]} Nxd4 {[%emt 0:00:01]} 14. Nc3 {[%emt 0:00:01][%cal Oc1e3]} Bg4 {[%emt 0:00:24]} 15. Nxe4 {[%emt 0:00:02][%cal Of2f3]} Nc2 {[%emt 0:00:21]} 16. Nxd6+ {[%emt 0:00:01]} Ke6 {[%emt 0:00:48]} 17. Bf4 $1 {[%emt 0:00:01]} Nxa1 {[%emt 0:00:06]} 18. Rxa1 {[%emt 0:00:00][%cal Oh2h3]} g5 {[%emt 0:00:33]} 19. Re1+ {[%emt 0:00:02][%mdl 1024] White has compensation.} Kd5 {[%emt 0:01:04]} 20. Bg3 {[%emt 0:01:06][%cal Of2f3]} (20. Bxg5 $2 {too greedy.} Kxd6 21. Re4 Be6 22. Rd4+ Kc6 $19) 20... Kc6 {[%emt 0:00:52]} 21. f3 {[%emt 0:01:59]} Bh5 {[%emt 0:00:26]} 22. Rc1+ {[%emt 0:00:18]} Kd5 {[%emt 0:00:10]} 23. Ne4 {[%emt 0:00:36]} Bg6 {[%emt 0:00:15]} 24. Rc5+ {[%emt 0:00:10]} Ke6 {[%emt 0:00:18]} 25. Nxg5+ {[%emt 0:00:01]} Ke7 {[%emt 0:00:06]} 26. Rc7+ {[%emt 0:00:02]} Kf6 {[%emt 0:00:01] [#]} 27. Bh4 {[%emt 0:00:15]} Rhc8 {[%emt 0:00:49]} 28. Rxb7 {[%emt 0:00:40] White is much more active.} Rc2 {[%emt 0:00:05]} (28... Ke5 $14) 29. Nxh7+ $16 {[%emt 0:00:13]} Ke6 {[%emt 0:00:11]} 30. Ng5+ {[%emt 0:00:12]} Kd5 {[%emt 0:00:02]} 31. h3 {[%emt 0:01:54]} ({White should play} 31. g4 $16 {Black must now prevent Bg3.} Kc6 32. Rg7) 31... Re8 $1 $14 {[%emt 0:00:12]} 32. Rg7 {[%emt 0:00:48]} Bf5 {[%emt 0:00:09]} (32... Ree2 $5 33. Rxg6 Rxg2+ 34. Kh1 (34. Kf1 Rh2 $11) 34... Rh2+ 35. Kg1 Rcg2+ 36. Kf1 Rxb2 $11) 33. Rf7 {[%emt 0:00:37]} Bg6 {[%emt 0:00:01]} 34. Rd7+ {[%emt 0:00:35]} Kc6 {[%emt 0:00:15]} 35. Rxa7 {[%emt 0:00:07]} Ree2 {[%emt 0:00:34] The position is equal.} 36. Ra6+ {[%emt 0:00:01]} Kd5 {[%emt 0:00:00]} 37. Rxg6 {[%emt 0:00:33]} Rxg2+ {[%emt 0:00:02]} 38. Kf1 {[%emt 0:00:00]} Rh2 $1 {[%emt 0:00:01]} 39. Kg1 {[%emt 0:00:20] Repels Rh1+} Rcg2+ {[%emt 0:00:02]} 40. Kf1 {[%emt 0:00:01][%cal Og5e6]} Rxb2 {[%emt 0:00:01]} 41. Kg1 {[%emt 0:00:26] Dodges Rh1+. aiming for Ne4.} Rbg2+ {[%emt 0:00:01]} (41... Rhe2 $5 42. Kf1 $8 Rh2 $11) 42. Kf1 {[%emt 0:00:00][%cal Og5e6] Hoping for Ne6!} Rxa2 {[%emt 0:00:01]} 43. Kg1 {[%emt 0:00:06] Prevents Rh1+. Ne4 would now be deadly.} Rag2+ {[%emt 0:00:46]} 44. Kf1 {[%emt 0:00:01][%cal Og5e6]} Ra2 {[%emt 0:00:01]} 45. Kg1 {[%emt 0:00:00] Inhibits Rh1+. Ne4 is the strong threat.} Rag2+ {[%emt 0:00:01]} 46. Kf1 {[%emt 0:00:01][%cal Og5e6]} Ra2 {[%emt 0:00:02] Weighted Error Value: White=0.08 (flawless) /Black=0.07 (flawless) .  Mistake:       	White=1     	Black=1      Inaccurate:     	White=1     	Black=3      OK:         	White=21    	Black=15     Best:        	White=4     	Black=5      Strong:       	White=1     	Black=2} 1/2-1/2

[Event "CCT Julius Baer-D3 2024"]
[Site "Online"]
[Date "2024.09.27"]
[Round "51.1"]
[White "Hakobyan, Aram"]
[Black "Sargissian, Gabriel"]
[Result "1/2-1/2"]
[ECO "C47"]
[WhiteElo "2617"]
[BlackElo "2646"]
[Annotator "TA"]
[PlyCount "79"]
[EventDate "2024.09.25"]
[EventType "swiss"]
[EventCountry "NET"]
[SourceTitle "playchess.com"]
[Source "ChessBase"]
[SourceQuality "1"]
[TimeControl "600+2"]

{[%evp 9,79,-38,-22,-6,-25,-39,45,-26,-22,0,0,0,0,-6,79,88,88,27,22,35,16,22,18,26,18,18,35,22,32,0,0,0,0,0,0,0,1,3,3,6,23,0,10,12,7,0,0,0,0,0,0,0,0,0,0,0,0,0,0,0,0,0,0,0,0,0,0,-4,0,0,0,0]} 1. e4 {[%emt 0:00:05]} e5 {[%emt 0:00:04][%cal Be7e5,Be5d4][%mdl 32]} 2. Nf3 {[%emt 0:00:00]} Nc6 {[%emt 0:00:01]} 3. Nc3 {[%emt 0:00:02]} Nf6 {[%emt 0:00:03]} 4. Nd5 {[%emt 0:00:01]} Bc5 {[%emt 0:00:23]} 5. c3 {[%emt 0:00:02]} Nxe4 {[%emt 0:00:43]} 6. d4 {[%emt 0:00:01]} exd4 {[%emt 0:00:26]} 7. Bd3 {[%emt 0:00:03]} f5 {[%emt 0:00:14]} (7... Nf6 $15 8. Qe2+ Kf8 9. Nxf6 (9. Bg5 Be7 $15) 9... Qxf6) 8. Bxe4 {[%emt 0:02:48]} (8. cxd4 $14 Bb4+ 9. Kf1) 8... fxe4 $11 {[%emt 0:00:04]} 9. Bg5 {[%emt 0:00:00]} Be7 {[%emt 0:01:31]} 10. Nxe7 {[%emt 0:00:10]} Nxe7 {[%emt 0:00:02]} (10... exf3 $2 {too greedy.} 11. O-O (11. Nd5 $2 Qxg5 12. Qxf3 Qe5+ 13. Kd2 Kd8 $19) 11... Ne5 (11... Nxe7 $2 12. Re1 $18) 12. Re1 $18 (12. Qxd4 d6 $16) (12. cxd4 h6 $18)) 11. Qxd4 {[%emt 0:05:03]} O-O {[%emt 0:00:07] Black is weak on the dark squares} (11... exf3 $11 12. O-O O-O) 12. Qxe4 $16 {[%emt 0:00:16] White has more active pieces.} d5 {[%emt 0:00:04] [#]} 13. Qe2 {[%emt 0:00:46]} (13. Qxe7 $2 {perishes.} Re8 $19) (13. Qh4 $1 $16 {[%cal Oe1c1] 0-0-0! would now be deadly.} Qe8 14. Bxe7) 13... Qd7 $11 {[%emt 0:00:05]} 14. Bxe7 {[%emt 0:00:18]} (14. Qxe7 $2 {loses.} Re8 $19) 14... Re8 {[%emt 0:00:08] [#]} 15. O-O $1 {[%emt 0:00:13] Hoping for Rae1.} Qxe7 {[%emt 0:00:22]} (15... Rxe7 16. Qc2) 16. Qxe7 {[%emt 0:00:01]} Rxe7 {[%emt 0:00:02]} 17. Rfe1 {[%emt 0:00:00]} Rxe1+ {[%emt 0:00:31]} 18. Rxe1 {[%emt 0:00:00][%mdl 4096] Endgame. KRB-KRN} Kf8 {[%emt 0:00:02] Repels Re7} 19. Nd4 {[%emt 0:00:25]} Bd7 {[%emt 0:00:12] Dodges Nb5} 20. Re5 {[%emt 0:00:06]} c6 {[%emt 0:00:23]} 21. f4 {[%emt 0:00:02][%cal Bf2f4,Bf4f5,Bf5g6][%mdl 32]} a5 {[%emt 0:00:01]} 22. Kf2 {[%emt 0:00:05]} a4 {[%emt 0:00:08]} 23. f5 {[%emt 0:00:04]} Ra6 {[%emt 0:00:04]} 24. g4 {[%emt 0:00:02]} Rb6 {[%emt 0:00:08]} 25. Re2 {[%emt 0:00:02]} c5 {[%emt 0:00:21] The position is equal.} 26. Nf3 {[%emt 0:00:01]} g6 {[%emt 0:00:10]} 27. fxg6 {[%emt 0:00:04]} (27. Ne5 {simplifies} Bb5 28. Kg3 gxf5 29. Rf2) 27... Bxg4 {[%emt 0:01:56]} 28. gxh7 {[%emt 0:00:01]} Rh6 {[%emt 0:00:01]} 29. Kg3 {[%emt 0:00:03]} Bxf3 {[%emt 0:00:04]} 30. Kxf3 {[%emt 0:00:00]} Rxh7 {[%emt 0:00:01] KR-KR} 31. Rd2 {[%emt 0:00:05]} Ke7 {[%emt 0:00:15]} 32. Kg4 {[%emt 0:00:03]} Rg7+ {[%emt 0:00:34]} 33. Kf5 {[%emt 0:00:01][%cal Oh2h4]} Rh7 {[%emt 0:00:03]} 34. Kg5 {[%emt 0:00:08][%cal Oh2h4]} Rg7+ {[%emt 0:00:04]} 35. Kf5 {[%emt 0:00:01][%cal Oh2h4]} Rh7 {[%emt 0:00:02]} 36. Kg4 {[%emt 0:00:01]} Rg7+ {[%emt 0:00:02]} 37. Kf4 {[%emt 0:00:00]} Rh7 {[%emt 0:00:04]} 38. Kg3 {[%emt 0:00:02]} Rg7+ {[%emt 0:00:03]} 39. Kf3 {[%emt 0:00:01]} Rh7 {[%emt 0:00:02]} 40. Kg4 {[%emt 0:00:04] Weighted Error Value: White=0.09 (flawless) /Black=0.09 (flawless) .  Mistake:       	White=2     	Black=2      Inaccurate:     	White=1     	---        OK:         	White=14    	Black=14     Best:        	White=2     	Black=2} 1/2-1/2

[Event "CCT Julius Baer-D3 2024"]
[Site "Online"]
[Date "2024.09.27"]
[Round "51.1"]
[White "Yilmaz, Mustafa"]
[Black "Svane, Frederik"]
[Result "1-0"]
[ECO "D45"]
[WhiteElo "2587"]
[BlackElo "2640"]
[Annotator "TA"]
[PlyCount "97"]
[EventDate "2024.09.25"]
[EventType "swiss"]
[EventCountry "NET"]
[SourceTitle "playchess.com"]
[Source "ChessBase"]
[SourceQuality "1"]
[TimeControl "600+2"]

{[%evp 22,96,12,0,13,0,27,15,22,17,110,117,117,121,104,154,122,58,60,50,53,56,56,61,52,50,60,36,64,63,96,114,95,104,93,95,95,38,58,28,27,50,35,20,146,127,125,13,62,55,237,220,243,137,124,124,249,270,266,266,489,486,994,1075,1075,1075,1894,1350,1928,1897,29996,29997,29997,29992,29998,29999,29999]} 1. d4 {[%emt 0:00:03]} Nf6 {[%emt 0:00:03]} 2. c4 {[%emt 0:00:02]} e6 {[%emt 0:00:01]} 3. Nf3 {[%emt 0:00:01]} d5 {[%emt 0:00:01]} 4. Nc3 {[%emt 0:00:01]} c6 {[%emt 0:00:01]} 5. e3 {[%emt 0:00:04]} Nbd7 {[%emt 0:00:01]} 6. Qc2 {[%emt 0:00:02]} Bd6 {[%emt 0:00:04]} 7. Be2 {[%emt 0:00:01]} O-O {[%emt 0:00:05]} 8. O-O {[%emt 0:00:01]} b6 {[%emt 0:00:02]} 9. e4 {[%emt 0:01:04]} dxe4 {[%emt 0:00:58]} 10. Nxe4 {[%emt 0:00:00]} Nxe4 {[%emt 0:00:01]} 11. Qxe4 {[%emt 0:00:02]} Bb7 {[%emt 0:00:01]} 12. Bd3 {[%emt 0:00:03]} Nf6 {[%emt 0:01:45]} 13. Qh4 {[%emt 0:00:02] Black must now prevent Bg5.} Re8 {[%emt 0:00:12]} (13... c5 $5) 14. Rd1 {[%emt 0:04:57]} h6 {[%emt 0:00:02] The position is equal.} 15. c5 {[%emt 0:00:26]} bxc5 {[%emt 0:02:09]} (15... Bb8 $11) 16. dxc5 $16 {[%emt 0:00:04]} Bxc5 {[%emt 0:00:00] [#]} 17. Bh7+ $1 {[%emt 0:00:54][%mdl 512]} Nxh7 {[%emt 0:00:02]} 18. Rxd8 {[%emt 0:00:00]} Raxd8 {[%emt 0:00:00]} 19. Bd2 {[%emt 0:00:13]} (19. Bxh6 $1 $16 gxh6 20. Qg3+ Ng5 (20... Kf8 $2 21. Qe5 $18) 21. Nxg5) 19... Bb6 $14 {[%emt 0:01:00]} 20. Bc3 {[%emt 0:00:08][%mdl 1024] White has compensation.} c5 {[%emt 0:00:10]} 21. Qg3 {[%emt 0:00:14][%csl Gc3][%cal Rg3g7]} f6 {[%emt 0:00:04]} 22. a4 {[%emt 0:00:08][%cal Ba2a4,Ba4a5][%mdl 32]} Rd7 {[%emt 0:00:48]} 23. a5 {[%emt 0:00:18]} Bc7 {[%emt 0:00:02]} 24. Qg4 {[%emt 0:00:03]} Rd5 {[%emt 0:00:25]} 25. Re1 {[%emt 0:00:26]} Ng5 {[%emt 0:00:41][%cal Bh7g5,Bg5e6,Be6f4][%mdl 32]} 26. Nd2 {[%emt 0:00:23]} e5 {[%emt 0:00:15]} 27. h4 {[%emt 0:00:06]} Ne6 {[%emt 0:00:07]} 28. Ne4 {[%emt 0:00:07]} Kf8 {[%emt 0:00:13]} 29. Qg6 {[%emt 0:00:46]} (29. Qf5 $16 {[%cal Oe4f6] Nxf6! is the strong threat.} Kg8 30. b4) 29... Nf4 {[%emt 0:00:12]} 30. Qh7 {[%emt 0:00:10] Nxf6 would now be deadly.} (30. Qf5 $5) 30... Kf7 {[%emt 0:00:01]} 31. g3 {[%emt 0:00:04]} Ne6 {[%emt 0:00:19]} 32. h5 {[%emt 0:00:03]} Rd7 {[%emt 0:00:53]} (32... Nf8 $1 $11 {keeps the balance.} 33. Qf5 Bc8) 33. Qg6+ $16 {[%emt 0:00:01]} Kf8 {[%emt 0:00:00]} 34. Qf5 {[%emt 0:00:05]} (34. b4 $1 $16) 34... Bc6 {[%emt 0:00:08]} (34... Kg8 $11) 35. b4 $14 {[%emt 0:00:03]} cxb4 $2 {[%emt 0:00:20]} (35... Rde7 $14) 36. Bxb4+ $18 {[%emt 0:00:01]} (36. Nxf6 gxf6 37. Qxf6+ Kg8 $11) 36... Kg8 {[%emt 0:00:00] [#]} 37. Qg6 $40 {[%emt 0:00:04][%mdl 128] White has strong attack.} (37. Rc1 $1 $18 {[%cal Rc1c6]} Ba4 38. Qg6) 37... Rf7 $16 {[%emt 0:00:03] [#] Hoping for ...f5.} 38. Rc1 $1 {[%emt 0:00:01] The board is on fire. White is more active.} Bxe4 {[%emt 0:00:07]} (38... Bd7 $16 {might work better.}) 39. Qxe4 $18 {[%emt 0:00:00]} Nd4 {[%emt 0:00:00] Dodges Qc6} 40. Kg2 {[%emt 0:00:03] Threatens to win with Qd5.} Rb8 $2 {[%emt 0:00:01]} (40... Rd8 41. Qd3 Nc6) 41. Qd5 {[%emt 0:00:03]} Bd8 {[%emt 0:00:05]} (41... Rd8 $142 42. Qa2 Rdd7) 42. Bd6 {[%emt 0:00:01]} Rb5 {[%emt 0:00:01]} 43. Qa2 {[%emt 0:00:03] And now Rc8 would win.} Rxa5 {[%emt 0:00:01]} 44. Qc4 {[%emt 0:00:04] aiming for Qc8.} Rb5 {[%emt 0:00:04]} 45. Qc8 {[%emt 0:00:02]} Rd5 {[%emt 0:00:01]} 46. Qxd8+ {[%emt 0:00:01] White mates.} Kh7 {[%emt 0:00:01]} 47. Qe8 {[%emt 0:00:01]} Rb7 {[%emt 0:00:04]} 48. Qg6+ {[%emt 0:00:01]} Kg8 {[%emt 0:00:01]} 49. Rc8# {[%emt 0:00:00] Weighted Error Value: White=0.12 (very precise) /Black=0.40.  Loses game:     	---       	Black=1      Mistake:       	White=4     	Black=6      Inaccurate:     	White=1     	Black=3      OK:         	White=14    	Black=10     Best:        	---       	Black=4      Strong:       	White=1     	---} 1-0

[Event "CCT Julius Baer-D3 2024"]
[Site "Online"]
[Date "2024.09.27"]
[Round "51.1"]
[White "Ponkratov, Pavel"]
[Black "Predke, Alexandr"]
[Result "0-1"]
[ECO "A30"]
[WhiteElo "2564"]
[BlackElo "2671"]
[Annotator "TA"]
[PlyCount "58"]
[EventDate "2024.09.25"]
[EventType "swiss"]
[EventCountry "NET"]
[SourceTitle "playchess.com"]
[Source "ChessBase"]
[SourceQuality "1"]
[TimeControl "600+2"]

{[%evp 17,58,21,33,0,22,0,0,-77,-77,-135,-145,-146,-130,-127,-125,-174,-174,-172,-156,-162,-137,-163,-147,-294,-317,-433,-389,-376,-377,-411,-401,-401,-376,-633,-620,-631,-621,-999,-594,-793,-716,-2150,-2022]} 1. Nf3 {[%emt 0:00:06]} Nf6 {[%emt 0:00:05]} 2. c4 {[%emt 0:00:02]} b6 {[%emt 0:00:02]} 3. g3 {[%emt 0:00:02]} c5 {[%emt 0:00:03]} 4. Bg2 {[%emt 0:00:05]} Bb7 {[%emt 0:00:01]} 5. O-O {[%emt 0:00:03]} g6 {[%emt 0:00:01]} 6. d4 {[%emt 0:00:04]} cxd4 {[%emt 0:00:02]} 7. Qxd4 {[%emt 0:00:01]} Bg7 {[%emt 0:00:01]} 8. Nc3 {[%emt 0:00:02]} d6 {[%emt 0:00:01]} 9. Rd1 {[%emt 0:00:05]} Nbd7 {[%emt 0:00:01]} 10. Qh4 {[%emt 0:00:06]} h5 {[%emt 0:00:22]} (10... h6 $5) 11. h3 {[%emt 0:00:09]} Rc8 {[%emt 0:00:15]} 12. Bg5 {[%emt 0:00:05]} (12. Bd2 $11) 12... Nh7 $17 {[%emt 0:00:07]} 13. Rac1 {[%emt 0:01:48]} ({White should play} 13. Bc1) 13... Bxf3 {[%emt 0:00:20]} 14. Bxf3 {[%emt 0:00:21]} Nxg5 {[%emt 0:00:13]} 15. Qxg5 {[%emt 0:00:02]} Bh6 {[%emt 0:00:02]} 16. Qb5 {[%emt 0:00:02]} Bxc1 $19 {[%emt 0:00:07]} 17. Rxc1 {[%emt 0:00:01]} O-O {[%emt 0:00:03][%cal Oh5h4]} 18. b3 {[%emt 0:00:08]} Nf6 {[%emt 0:00:17]} 19. Qa6 {[%emt 0:00:05][%cal Oc3b5]} Qd7 {[%emt 0:00:11]} 20. Nb5 {[%emt 0:00:07]} (20. h4 $17) 20... Qxh3 {[%emt 0:00:47] aiming for ...h4.} 21. Qxa7 {[%emt 0:00:22]} h4 {[%emt 0:00:34]} 22. Bg2 {[%emt 0:00:18]} Qe6 {[%emt 0:00:16]} 23. gxh4 {[%emt 0:00:18]} Qxe2 {[%emt 0:00:10]} 24. Qxb6 {[%emt 0:00:14]} Rc5 {[%emt 0:00:11][%cal Of6g4] [#] ...Ng4! is the strong threat.} ({But not} 24... Qxa2 25. Qe3 $19) 25. Qb7 $2 {[%emt 0:00:11]} (25. Qa5) 25... Rf5 {[%emt 0:00:36] Black is clearly winning.} ({Less strong is} 25... Qxa2 26. Qxe7 Ng4 27. Rf1 $17) 26. Rf1 {[%emt 0:00:09]} Qe5 {[%emt 0:00:02] Dodges Nd4} (26... Qxa2 $2 27. Qxe7 Re8 (27... Qxb3 28. Nd4 $11) 28. Qxd6 $17) 27. Bf3 {[%emt 0:01:46] Inhibits Ng4.} Rf4 {[%emt 0:00:05]} 28. Rc1 {[%emt 0:00:34]} Rxh4 {[%emt 0:00:05] [#] Threatens to win with ...Qg5+.} 29. Nc3 {[%emt 0:00:02]} Qg5+ {[%emt 0:00:03] White got outplayed after the opening.   Weighted Error Value: White=1.16/Black=0.39.  Mistake:       	White=5     	---        Inaccurate:     	White=2     	---        OK:         	White=3     	Black=8      Best:        	White=1     	Black=4} 0-1